bitfinex/quotes_SOLUSD_20251126
["timestamp","ask_amount","ask_price","bid_price","bid_amount"]
[1764144009140,24.99304789,140.04,140.01,8.80994492]
[1764144009454,0.65,140.04,140.01,8.80994492]
[1764144009742,7.79097087,140.04,140.01,8.80994492]
[1764144010446,7.14097087,140.04,140.01,11.47629449]
[1764144010757,7.79097087,140.04,140.01,10.80629449]
[1764144011264,7.79097087,140.04,140.01,8.80994492]
[1764144011423,7.79163266,140.03,140.01,8.80994492]
[1764144011743,9.78798223,140.03,139.97,3.73317886]
[1764144011942,1.99634957,140.01,139.98,8.80994492]
[1764144012357,0.65,140.0,139.96,3.81]
[1764144012537,0.65,140.0,139.97,8.80994492]
[1764144012853,0.65,140.04,139.99,1.99634957]
[1764144013059,0.65,140.04,140.0,1.99634957]
[1764144013260,7.7908169,140.04,140.0,0.67]
[1764144013558,7.7908169,140.04,139.99,5.13634957]
[1764144013559,7.1403411,140.05,140.01,11.47629449]
[1764144013917,0.68,140.04,140.01,9.52994492]
[1764144014550,7.8203411,140.05,140.01,9.52994492]
[1764144015345,7.8203411,140.05,140.01,11.52629449]
[1764144015551,7.8203411,140.05,140.01,18.66852069]
[1764144017483,7.8203411,140.05,140.01,9.52994492]
[1764144018551,0.68,140.04,140.01,9.52994492]
[1764144018764,9.81729257,140.04,139.99,3.14]
[1764144018990,1.99634957,140.0,139.96,8.80994492]
[1764144019345,2.67634957,140.0,139.96,9.52994492]
[1764144019865,2.67634957,140.0,139.96,8.80994492]
[1764144019866,0.68,139.99,139.96,8.80994492]
[1764144020054,0.68,139.99,139.96,9.52994492]
[1764144020771,7.82337743,139.99,139.96,8.80994492]
[1764144020948,9.819727,139.99,139.96,8.80994492]
[1764144021155,0.68,139.98,139.96,8.80994492]
[1764144022068,9.819727,139.99,139.96,8.80994492]
[1764144022462,7.82337743,139.99,139.96,8.80994492]
[1764144023362,0.68,139.98,139.95,6.87383499]
[1764144023550,0.68,139.98,139.95,3.14]
[1764144023753,0.68,139.98,139.95,3.86]
[1764144023981,26.99814545,139.99,139.95,3.86]
[1764144024182,27.67814545,139.99,139.95,3.86]
[1764144024566,25.00179588,139.99,139.96,0.72]
[1764144026076,25.68179588,139.99,139.96,0.72]
[1764144026383,25.00179588,139.99,139.96,0.72]
[1764144026797,25.68179588,139.99,139.96,0.72]
[1764144027393,25.00179588,139.99,139.96,9.52994492]
[1764144027593,3.82,140.03,139.99,8.80994492]
[1764144028101,7.14234697,140.01,139.99,8.80994492]
[1764144028266,7.14234697,140.01,139.99,9.52994492]
[1764144028896,7.14203513,140.02,140.0,0.72]
[1764144029058,7.14147244,140.03,140.0,0.72]
[1764144030006,7.14147244,140.03,140.0,3.84358719]
[1764144030193,7.14147244,140.03,140.01,0.72]
[1764144032780,7.82147244,140.03,140.0,0.72]
[1764144033090,0.68,140.02,139.99,8.80994492]
[1764144033292,0.68,140.02,139.99,9.52994492]
[1764144033490,7.82147244,140.03,139.99,9.52994492]
[1764144033787,7.14147244,140.03,140.0,0.72]
[1764144034892,3.80358719,140.05,140.0,0.72]
[1764144035096,0.68,140.04,140.01,8.80994492]
[1764144035900,3.80358719,140.04,139.98,3.86]
[1764144036097,19.43245119,140.02,139.99,8.80994492]
[1764144036395,19.43245119,140.0,139.94,0.72]
[1764144036604,3.12358719,139.98,139.94,0.72]
[1764144036769,3.12358719,139.98,139.95,8.80994492]
[1764144037093,3.12358719,139.98,139.93,8.80994492]
[1764144037094,7.14489854,139.96,139.93,8.80994492]
[1764144037301,7.14450928,139.97,139.94,0.72]
[1764144037467,7.82450928,139.97,139.93,9.52994492]
[1764144037669,7.82450928,139.97,139.93,8.80994492]
[1764144037870,7.14450928,139.97,139.93,11.93353211]
[1764144038079,34.84642002,140.0,139.95,11.93353211]
[1764144038295,34.84642002,140.0,139.95,8.80994492]
[1764144038497,34.84642002,140.0,139.96,0.72]
[1764144039088,7.82336738,139.99,139.95,9.52994492]
[1764144039297,7.14336738,139.99,139.96,0.72]
[1764144039498,7.82336738,139.99,139.96,0.72]
[1764144039975,23.45183152,140.0,139.97,8.80994492]
[1764144040372,19.48971642,153.94,139.97,8.80994492]
[1764144040373,10.23938464,140.03,139.99,15.0571193]
[1764144040576,3.05843508,140.15,140.06,25.11880892]
[1764144040874,0.68000001,140.07,140.06,25.11880892]
[1764144041074,0.68000001,140.07,140.06,8.80994492]
[1764144041790,0.68000001,140.07,140.05,3.16]
[1764144042197,0.68000001,140.07,140.06,8.80994492]
[1764144042599,0.68000001,140.07,140.05,3.16]
[1764144043108,0.68000001,140.07,140.03,8.80994492]
[1764144043278,15.78417476,140.07,140.03,8.80994492]
[1764144043778,7.96476736,140.06,140.03,8.80994492]
[1764144043994,8.68476736,140.06,140.03,8.80994492]
[1764144044303,0.72,140.05,140.03,8.80994492]
[1764144044805,16.308864,140.04,139.98,8.80994492]
[1764144045037,24.27363136,140.04,139.98,8.80994492]
[1764144045177,7.86164164,140.03,139.98,8.80994492]
[1764144045594,0.72,140.02,139.98,8.80994492]
[1764144045977,8.68476736,140.02,139.97,8.80994492]
[1764144046187,7.96476736,140.01,139.96,3.16]
[1764144046404,8.68476736,140.01,139.96,3.16]
[1764144046578,8.68476736,140.01,139.97,8.80994492]
[1764144046579,0.72,140.0,139.97,8.80994492]
[1764144046773,8.68476736,140.0,139.96,3.16]
[1764144047002,24.99363136,140.0,139.96,3.16]
[1764144047307,0.72,139.99,139.96,3.16]
[1764144047604,7.86362958,139.99,139.96,3.16]
[1764144048087,8.68476736,139.98,139.93,11.96994492]
[1764144048278,7.96476736,139.97,139.93,11.96994492]
[1764144048475,8.68476736,139.97,139.93,11.96994492]
[1764144048704,0.72,139.96,139.93,11.96994492]
[1764144050091,0.72,140.0,139.95,16.77471228]
[1764144050306,0.72,140.0,139.97,8.80994492]
[1764144050505,0.72,140.0,139.95,8.80994492]
[1764144051388,0.72,140.0,139.95,16.77471228]
[1764144052120,0.72,140.0,139.95,15.95493759]
[1764144052290,7.96476736,139.99,139.95,8.80994492]
[1764144052797,0.72,139.98,139.95,8.80994492]
[1764144053893,0.72,139.98,139.96,5.29336525]
[1764144054093,7.86387769,139.98,139.97,5.29336525]
[1764144055802,15.82864505,139.98,139.97,5.29336525]
[1764144056313,33.68833929,139.98,139.94,3.16]
[1764144056510,8.68476736,139.97,139.95,5.29643336]
[1764144056690,8.68476736,139.97,139.96,5.29643336]
[1764144056890,7.96476736,139.97,139.96,5.29643336]
[1764144057707,15.82915544,139.97,139.96,5.29643336]
[1764144060121,7.86438808,139.97,139.96,5.29638372]
[1764144060419,15.82915544,139.97,139.96,5.29638372]
[1764144060620,24.27363136,139.94,139.91,0.2]
[1764144060920,7.96476736,139.93,139.91,0.2]
[1764144061123,17.028864,139.94,139.91,0.2]
[1764144061290,17.028864,139.94,139.91,0.92]
[1764144061488,0.72,139.93,139.91,0.2]
[1764144061692,8.68476736,139.93,139.91,0.2]
[1764144062193,0.72,139.92,139.91,0.2]
[1764144062617,7.96476736,139.93,139.91,0.2]
[1764144062798,16.308864,139.94,139.91,0.2]
[1764144062799,0.66,139.92,139.91,0.2]
[1764144063818,7.14690499,139.93,139.91,0.2]
[1764144064017,7.80690499,139.93,139.91,0.2]
[1764144065319,7.14690499,139.93,139.91,0.2]
[1764144065492,0.66,139.92,139.91,0.2]
[1764144066911,8.62476736,139.92,139.91,0.2]
[1764144067540,16.308864,139.9,139.89,0.2]
[1764144067714,27.43363136,139.9,139.89,1e-08]
[1764144067905,28.09363136,139.9,139.87,0.2]
[1764144068111,7.96476736,139.88,139.87,0.2]
[1764144068303,7.96476736,139.88,139.86,0.2]
[1764144068626,28.09363136,139.87,139.82,0.2]
[1764144068919,7.96476736,139.83,139.82,0.2]
[1764144069220,11.12476736,139.84,139.82,0.2]
[1764144069602,15.77630851,139.83,139.82,0.2]
[1764144069803,7.81154115,139.83,139.82,0.2]
[1764144072034,15.77630851,139.83,139.82,0.2]
[1764144072637,7.81154115,139.83,139.82,0.2]
[1764144072928,18.93630851,139.83,139.82,0.2]
[1764144073138,18.93630851,139.83,139.81,1e-08]
[1764144073324,8.62476736,139.82,139.81,1e-08]
[1764144073932,15.77681999,139.82,139.81,1e-08]
[1764144074109,18.93681999,139.82,139.81,1e-08]
[1764144074625,10.97205263,139.82,139.81,1e-08]
[1764144074794,18.93681999,139.82,139.81,1e-08]
[1764144075195,15.77681999,139.82,139.81,1e-08]
[1764144075421,18.93681999,139.82,139.81,1e-08]
[1764144076327,35.24568399,139.82,139.81,1e-08]
[1764144077312,32.08568399,139.82,139.81,1e-08]
[1764144077498,35.24568399,139.82,139.81,1e-08]
[1764144080327,26.62091663,139.82,139.81,1e-08]
[1764144081526,23.46091663,139.82,139.81,1e-08]
[1764144081843,3.16,139.84,139.81,0.66000001]
[1764144082820,10.31146261,139.84,139.81,0.66000001]
[1764144083628,7.15146261,139.84,139.81,0.66000001]
[1764144083819,7.15146261,139.84,139.81,8.62476737]
[1764144084428,7.15146261,139.84,139.82,0.66]
[1764144085012,7.15146261,139.84,139.81,1e-08]
[1764144085224,4.69428447,139.82,139.81,1e-08]
[1764144085627,5.40428447,139.82,139.81,1e-08]
[1764144086135,21.71314847,139.82,139.81,1e-08]
[1764144086338,5.40428447,139.82,139.81,1e-08]
[1764144087007,12.5563371,139.82,139.81,1e-08]
[1764144087212,28.8652011,139.82,139.81,1e-08]
[1764144087412,15.7163371,139.82,139.81,1e-08]
[1764144087846,15.7163371,139.82,139.76,1e-08]
[1764144087847,16.308864,139.79,139.76,1e-08]
[1764144088140,4.69428447,139.77,139.76,1e-08]
[1764144088512,21.71314847,139.77,139.76,1e-08]
[1764144089732,28.86775961,139.77,139.76,1e-08]
[1764144090424,23.46347514,139.77,139.76,1e-08]
[1764144090627,28.86775961,139.77,139.76,1e-08]
[1764144091528,16.308864,139.77,139.76,1e-08]
[1764144091830,26.62347514,139.77,139.76,0.66000001]
[1764144092035,26.62347514,139.77,139.76,1e-08]
[1764144092611,0.71,139.82,139.76,0.66000001]
[1764144092931,16.308864,139.79,139.76,5.35428448]
[1764144093131,7.15154115,139.83,139.78,4.69428447]
[1764144093334,3.16,139.82,139.79,4.69428447]
[1764144093833,16.308864,139.81,139.8,0.66]
[1764144094012,23.28118053,139.85,139.8,0.66]
[1764144094013,7.15000715,139.86,139.81,8.80994492]
[1764144094332,3.16,139.85,139.82,0.66]
[1764144095014,8.56428447,139.85,139.81,0.66]
[1764144096119,7.15102974,139.84,139.81,0.66]
[1764144097421,10.31060547,139.85,139.81,14.16422939]
[1764144097812,10.31060547,139.85,139.82,0.66]
[1764144098035,7.15060547,139.85,139.82,0.66]
[1764144098210,10.31060547,139.85,139.82,0.66]
[1764144098750,0.71,139.84,139.79,5.35428447]
[1764144099041,0.71,139.84,139.8,0.66]
[1764144099543,7.15154115,139.83,139.8,0.66]
[1764144099718,7.15154115,139.83,139.8,5.35428447]
[1764144099918,10.31120223,139.84,139.8,5.35428447]
[1764144100238,10.31120223,139.84,139.81,0.66]
[1764144100441,7.15120223,139.84,139.81,0.66]
[1764144100741,7.15120223,139.84,139.81,5.35428447]
[1764144100922,7.15120223,139.84,139.82,0.66]
[1764144102439,16.308864,139.86,139.82,0.66]
[1764144102629,3.16,139.85,139.82,5.35428447]
[1764144103037,3.16,139.85,139.83,0.66]
[1764144103342,113.70955555,139.87,139.84,4.69428447]
[1764144103844,113.70955555,139.87,139.85,0.66]
[1764144104015,110.54955555,139.87,139.85,5.35428447]
[1764144104420,110.54955555,139.87,139.86,0.71]
[1764144104623,111.23955555,139.87,139.83,13.50422939]
[1764144104838,113.70955555,139.87,139.84,0.71]
[1764144108045,7.14955555,139.87,139.85,8.80994492]
[1764144108346,103.4,139.91,139.87,8.80994492]
[1764144108546,110.54750883,139.91,139.88,4.69428447]
[1764144108843,110.54750883,139.91,139.87,14.21422939]
[1764144109049,111.23750883,139.91,139.87,14.21422939]
[1764144109230,0.69,139.9,139.85,0.71]
[1764144109422,4.69428447,139.89,139.84,8.80994492]
[1764144109623,3.16,139.88,139.84,9.51994492]
[1764144109825,3.85,139.88,139.84,8.80994492]
[1764144110020,3.85,139.88,139.85,0.71]
[1764144110227,10.99948507,139.88,139.85,0.71]
[1764144112348,10.30948507,139.88,139.85,0.71]
[1764144113931,10.99948507,139.88,139.85,0.71]
[1764144116547,21.00314847,139.86,139.8,0.71]
[1764144116753,16.308864,139.86,139.82,8.80994492]
[1764144116934,3.16,139.85,139.82,13.50422939]
[1764144117130,3.16,139.85,139.82,14.21422939]
[1764144117649,25.02194718,139.88,139.82,14.21422939]
[1764144117650,16.308864,139.88,139.84,13.50422939]
[1764144117850,129.10971872,139.89,139.85,4.69428447]
[1764144118053,16.998864,139.88,139.85,5.40428447]
[1764144118227,16.998864,139.88,139.85,0.71]
[1764144119251,7.14949596,139.87,139.85,0.71]
[1764144119851,7.83949596,139.87,139.84,8.80994492]
[1764144120066,7.83949596,139.87,139.84,9.51994492]
[1764144120239,7.14949596,139.87,139.84,9.51994492]
[1764144121951,0.69,139.86,139.82,3.16]
[1764144122143,4.69428447,139.85,139.8,0.71]
[1764144122346,0.72,139.84,139.8,0.71]
[1764144122844,7.85428447,139.85,139.8,5.40428447]
[1764144123250,0.72,139.84,139.8,4.69428447]
[1764144123434,0.72,139.84,139.8,0.72]
[1764144123754,7.15154115,139.83,139.8,0.72]
[1764144124444,7.87154115,139.83,139.8,0.72]
[1764144124753,7.15154115,139.83,139.8,0.72]
[1764144125437,16.308864,139.86,139.83,8.80994492]
[1764144125643,23.45907038,139.86,139.83,13.50422939]
[1764144125831,23.45907038,139.86,139.84,0.72]
[1764144126233,7.15020638,139.86,139.84,0.72]
[1764144126432,7.15020638,139.86,139.83,8.80994492]
[1764144126632,7.15020638,139.86,139.83,9.52994492]
[1764144128557,7.15020638,139.86,139.83,8.80994492]
[1764144128558,7.87020638,139.86,139.83,8.80994492]
[1764144128755,7.87020638,139.86,139.81,16.66422939]
[1764144129064,7.87020638,139.86,139.83,0.72]
[1764144130872,25.74522425,139.86,139.83,0.72]
[1764144131040,0.72,139.85,139.82,8.80994492]
[1764144131238,16.308864,139.82,139.79,8.80994492]
[1764144131460,16.308864,139.82,139.79,9.52994492]
[1764144131657,16.308864,139.82,139.8,0.72]
[1764144131854,3.16,139.84,139.8,2.7226974]
[1764144132359,25.02681444,139.85,139.81,0.72]
[1764144132572,25.02681444,139.85,139.81,2.7226974]
[1764144132966,25.02681444,139.85,139.82,0.72]
[1764144133666,25.74681444,139.85,139.82,0.72]
[1764144133866,7.15051841,139.85,139.82,9.52994492]
[1764144134364,7.84051841,139.85,139.82,9.52994492]
[1764144136463,25.02681444,139.85,139.82,8.80994492]
[1764144136665,25.71681444,139.85,139.82,9.51994492]
[1764144140263,25.71681444,139.85,139.78,17.88459955]
[1764144140264,0.69,139.84,139.78,7.153915]
[1764144140471,2.6926974,139.84,139.81,8.80994492]
[1764144140954,2.6926974,139.84,139.81,0.71]
[1764144141345,7.15154115,139.83,139.81,0.71]
[1764144142577,7.15154115,139.83,139.78,8.80994492]
[1764144142578,2.6926974,139.82,139.78,8.80994492]
[1764144142871,2.6926974,139.82,139.78,9.51994492]
[1764144143242,7.15256419,139.81,139.78,8.80994492]
[1764144143443,7.15256419,139.81,139.79,0.71]
[1764144146049,7.83898484,139.88,139.81,8.80994492]
[1764144146266,10.99898484,139.88,139.84,8.80994492]
[1764144146471,10.99898484,139.88,139.85,0.71]
[1764144147980,7.14851079,139.89,139.86,8.80994492]
[1764144148154,7.14851079,139.89,139.86,11.93804667]
[1764144148357,7.14817193,139.9,139.87,3.83810175]
[1764144148553,7.14766486,139.91,139.87,3.83810175]
[1764144148756,7.14713935,139.92,139.89,3.12810175]
[1764144149159,7.14713935,139.92,139.9,0.71]
[1764144149983,10.30659857,139.93,139.9,0.71]
[1764144150673,10.99659857,139.93,139.88,17.50109069]
[1764144150873,10.99659857,139.93,139.89,0.71]
[1764144152086,8.67114577,139.92,139.85,3.87]
[1764144152268,7.98114577,139.89,139.85,8.80994492]
[1764144152764,0.69,139.89,139.85,9.51994492]
[1764144153383,7.14745193,139.91,139.87,8.80994492]
[1764144153866,7.83745193,139.91,139.87,9.51994492]
[1764144154783,15.8185977,139.91,139.87,9.51994492]
[1764144155482,0.69,139.95,139.89,8.80994492]
[1764144155780,11.14114577,139.94,139.89,8.80994492]
[1764144155981,7.98114577,139.93,139.89,8.80994492]
[1764144156164,8.67114577,139.93,139.89,0.71]
[1764144156680,7.1469411,139.92,139.89,0.71]
[1764144156977,7.98114577,139.9,139.86,0.71]
[1764144157484,8.67114577,139.9,139.86,0.71]
[1764144158187,7.1484738,139.89,139.86,0.71]
[1764144159293,7.1484738,139.89,139.84,11.96994492]
[1764144159591,0.69,139.88,139.84,9.51994492]
[1764144159754,33.00080407,139.89,139.85,0.71]
[1764144159955,7.1484738,139.89,139.86,16.79109069]
[1764144160388,7.1484738,139.89,139.87,0.71]
[1764144161283,15.12961957,139.89,139.84,8.80994492]
[1764144161492,15.81961957,139.89,139.86,8.80994492]
[1764144161796,7.8384738,139.89,139.86,8.80994492]
[1764144161983,7.8384738,139.89,139.86,0.71]
[1764144163888,7.1484738,139.89,139.86,9.51994492]
[1764144164266,7.1484738,139.89,139.87,0.71]
[1764144164687,7.8684738,139.89,139.86,8.80994492]
[1764144164896,7.8684738,139.89,139.86,9.51994492]
[1764144166690,7.1484738,139.89,139.87,9.51994492]
[1764144168792,7.14796283,139.9,139.87,9.51994492]
[1764144168998,7.86796283,139.9,139.87,9.51994492]
[1764144171396,7.86796283,139.9,139.87,0.71]
[1764144171800,7.14796283,139.9,139.87,0.71]
[1764144172174,7.86796283,139.9,139.87,0.71]
[1764144173498,7.1469411,139.92,139.88,8.80994492]
[1764144173792,110.54659677,139.93,139.9,8.80994492]
[1764144173980,7.14659677,139.93,139.9,8.80994492]
[1764144174292,7.86659677,139.93,139.9,9.51994492]
[1764144175997,7.86659677,139.93,139.88,8.80994492]
[1764144175998,0.72,139.92,139.88,8.80994492]
[1764144176187,28.85999372,139.93,139.9,8.80994492]
[1764144176696,0.72,139.92,139.9,8.80994492]
[1764144177298,25.01267266,139.93,139.9,0.71]
[1764144177478,25.73267266,139.93,139.9,0.71]
[1764144177805,7.14659677,139.93,139.9,0.71]
[1764144177994,7.14659677,139.93,139.9,3.83732106]
[1764144178503,7.14659677,139.93,139.91,0.71]
[1764144178891,127.54875543,139.97,139.92,8.80994492]
[1764144179092,0.72,139.96,139.92,8.80994492]
[1764144179405,0.72,139.96,139.92,0.71]
[1764144179707,7.86489854,139.96,139.92,0.71]
[1764144180088,3.84732106,139.95,139.9,3.16]
[1764144180298,3.12732106,139.94,139.9,3.16]
[1764144180607,0.72,139.94,139.9,3.87]
[1764144180902,3.12732106,139.92,139.87,8.80994492]
[1764144181076,3.12732106,139.92,139.87,9.51994492]
[1764144181278,0.72,139.91,139.87,9.51994492]
[1764144181502,7.14796283,139.9,139.89,8.80994492]
[1764144182105,7.14796283,139.9,139.87,9.51994492]
[1764144182405,16.308864,139.87,139.8,0.66]
[1764144182584,3.12732106,139.81,139.78,0.66]
[1764144182781,19.468864,139.86,139.78,0.66]
[1764144182782,6.28732106,139.83,139.78,0.66]
[1764144182988,3.16,139.83,139.78,3.78732106]
[1764144183189,3.82732106,139.84,139.78,3.78732106]
[1764144183396,3.82732106,139.84,139.8,8.80994492]
[1764144183603,7.15154115,139.83,139.8,8.80994492]
[1764144183805,7.85154115,139.83,139.8,0.66]
[1764144185308,10.97886221,139.83,139.8,0.66]
[1764144191011,7.85154115,139.83,139.8,0.66]
[1764144192419,0.7,139.82,139.77,16.62442252]
[1764144192710,3.12732106,139.8,139.76,9.46994493]
[1764144193093,3.82732106,139.8,139.77,0.66]
[1764144193909,7.85345551,139.8,139.77,0.66]
[1764144194910,7.85345551,139.8,139.78,8.80994492]
[1764144195134,7.84345551,139.8,139.76,8.80994493]
[1764144195318,25.72614506,139.8,139.77,0.66]
[1764144197626,0.69,139.79,139.76,9.46994493]
[1764144197997,7.15409929,139.78,139.76,9.46994493]
[1764144199614,3.81732106,139.77,139.76,1e-08]
[1764144199806,7.84368907,139.79,139.76,1e-08]
[1764144199989,7.15368907,139.79,139.76,0.66000001]
[1764144200192,7.84368907,139.79,139.76,0.66000001]
[1764144200917,7.15368907,139.79,139.77,8.80994492]
[1764144201307,7.15368907,139.79,139.77,9.46994492]
[1764144201507,7.15307582,139.8,139.77,9.46994492]
[1764144201705,7.84307582,139.8,139.77,9.46994492]
[1764144202016,7.15307582,139.8,139.77,8.80994492]
[1764144202318,7.84307582,139.8,139.77,9.46994492]
[1764144204320,110.55271304,139.81,139.78,3.78732106]
[1764144204706,110.55271304,139.81,139.79,0.66]
[1764144206003,7.15271304,139.81,139.79,0.66]
[1764144206502,7.15271304,139.81,139.78,0.66]
[1764144208411,3.81732106,139.8,139.76,1e-08]
[1764144208618,2.69474725,139.8,139.77,8.80994492]
[1764144208799,0.69,139.79,139.77,8.80994492]
[1764144210221,7.84378096,139.79,139.77,8.80994492]
[1764144212530,7.84378096,139.79,139.76,1e-08]
[1764144212708,0.69,139.78,139.76,1e-08]
[1764144213028,7.15378096,139.79,139.77,8.80994492]
[1764144213206,7.84378096,139.79,139.77,8.80994492]
[1764144213402,7.15378096,139.79,139.77,8.80994492]
[1764144213620,7.15378096,139.79,139.76,1e-08]
[1764144213916,7.15378096,139.79,139.77,0.66]
[1764144214119,3.16,139.82,139.78,2.00474725]
[1764144214331,0.69,139.82,139.79,0.66]
[1764144214718,17.87929809,139.83,139.79,0.66]
[1764144214914,107.25,139.84,139.8,8.80994492]
[1764144215225,0.69,139.86,139.81,2.00474725]
[1764144215433,7.15000715,139.86,139.82,0.66]
[1764144215735,17.87183629,139.89,139.85,10.81469217]
[1764144216233,18.56183629,139.89,139.85,11.47469217]
[1764144217327,2.00474725,139.87,139.83,8.80994492]
[1764144217714,0.69,139.86,139.83,9.46994492]
[1764144218114,7.8402538,139.86,139.83,9.46994492]
[1764144218433,7.1502538,139.86,139.83,9.46994492]
[1764144220534,7.8402538,139.86,139.83,9.46994492]
[1764144221126,7.8402538,139.86,139.81,12.31713029]
[1764144221127,2.69474725,139.85,139.8,0.66]
[1764144221322,2.00474725,139.84,139.79,8.80994492]
[1764144221635,0.69,139.84,139.79,9.46994492]
[1764144221934,0.69,139.83,139.8,0.66]
[1764144222723,7.15205263,139.82,139.8,0.66]
[1764144225433,7.15154115,139.83,139.8,0.66]
[1764144225626,0.7,139.82,139.79,8.80994492]
[1764144225820,0.7,139.82,139.79,9.47994492]
[1764144226015,19.88232162,139.84,139.79,9.47994492]
[1764144226016,18.57542376,139.86,139.81,10.81469217]
[1764144226336,18.57542376,139.86,139.82,2.00474725]
[1764144226537,18.57542376,139.86,139.82,2.67474725]
[1764144226833,7.15071666,139.85,139.83,0.67]
[1764144227031,7.15015492,139.86,139.83,2.67474725]
[1764144227417,7.15015492,139.86,139.84,0.67]
[1764144227813,7.15015492,139.86,139.83,8.80994492]
[1764144228138,7.85015492,139.86,139.83,8.80994492]
[1764144228441,7.85015492,139.86,139.83,9.47994492]
[1764144229642,110.54967123,139.87,139.84,2.67474725]
[1764144229940,20.57383897,139.91,139.86,2.00474725]
[1764144230117,2.00474725,139.89,139.85,8.80994492]
[1764144230320,0.7,139.88,139.85,8.80994492]
[1764144230827,0.7,139.88,139.84,3.16]
[1764144231023,2.70474725,139.88,139.84,3.16]
[1764144231438,0.7,139.87,139.84,3.16]
[1764144231636,7.15000715,139.86,139.84,3.83]
[1764144232226,0.7,139.85,139.82,0.67]
[1764144232433,0.7,139.85,139.82,8.80994492]
[1764144232673,25.02502502,139.86,139.82,9.47994492]
[1764144232833,25.72502502,139.86,139.82,9.47994492]
[1764144233560,0.7,139.85,139.82,9.47994492]
[1764144233856,7.15102974,139.84,139.82,9.47994492]
[1764144235945,7.15102974,139.84,139.82,8.80994492]
[1764144236133,0.7,139.83,139.82,8.80994492]
[1764144236519,7.15102974,139.84,139.82,8.80994492]
[1764144236840,7.85102974,139.84,139.82,8.80994492]
[1764144237544,2.70474725,139.83,139.79,8.80994492]
[1764144238043,0.7,139.82,139.79,8.80994492]
[1764144238727,41.33746811,139.84,139.8,0.67]
[1764144238930,23.45989374,139.84,139.81,10.81469217]
[1764144239323,23.45989374,139.84,139.82,0.67]
[1764144241344,7.15063298,139.85,139.82,0.67]
[1764144241552,7.85063298,139.85,139.82,0.67]
[1764144241751,7.15063298,139.85,139.82,0.67]
[1764144242051,7.85020919,139.86,139.82,0.67]
[1764144242226,7.85020919,139.86,139.82,2.67474725]
[1764144242427,7.85020919,139.86,139.83,0.65]
[1764144243447,7.14963033,139.87,139.84,8.80994492]
[1764144243647,0.67,139.91,139.86,10.81469217]
[1764144243837,7.81643035,139.93,139.89,2.00474725]
[1764144244224,7.81643035,139.93,139.89,2.65474725]
[1764144244427,25.68250624,139.93,139.89,2.65474725]
[1764144244628,0.67,139.92,139.89,0.65]
[1764144244923,0.67,139.92,139.85,8.80994492]
[1764144245232,2.00474725,139.89,139.84,8.80994492]
[1764144245429,7.1484738,139.89,139.85,0.65]
[1764144245630,7.8184738,139.89,139.85,0.65]
[1764144246027,16.978864,139.88,139.82,9.45994492]
[1764144246229,20.138864,139.88,139.82,9.45994492]
[1764144246452,0.67,139.87,139.82,11.46469217]
[1764144246830,0.67,139.87,139.84,8.80994492]
[1764144247337,7.15000715,139.86,139.84,8.80994492]
[1764144247727,7.82000715,139.86,139.84,8.80994492]
[1764144248549,0.67,139.9,139.86,8.80994492]
[1764144248848,29.7079856,139.91,139.86,8.80994492]
[1764144249023,5.36162427,139.9,139.86,8.80994492]
[1764144249222,0.67,139.9,139.86,9.45994492]
[1764144249427,7.1484738,139.89,139.86,8.80994492]
[1764144249639,21.00048827,139.87,139.8,8.80994492]
[1764144249849,4.69162427,139.83,139.8,8.80994492]
[1764144250039,4.69162427,139.83,139.81,8.80994492]
[1764144250224,0.67,139.83,139.81,8.80994492]
[1764144250423,0.67,139.83,139.79,9.45994492]
[1764144250628,5.36162427,139.83,139.79,8.80994492]
[1764144250828,5.36162427,139.83,139.79,0.65]
[1764144251129,0.67,139.83,139.79,0.65]
[1764144251341,5.36162427,139.83,139.79,0.65]
[1764144251551,7.15205263,139.82,139.79,9.45994492]
[1764144251732,7.15164687,139.83,139.8,8.80994492]
[1764144251934,7.15051841,139.85,139.8,14.15156919]
[1764144252134,7.15051841,139.85,139.82,8.80994492]
[1764144252654,7.15051841,139.85,139.82,0.65]
[1764144252832,7.82051841,139.85,139.82,0.65]
[1764144253028,7.15051841,139.85,139.82,0.65]